[Event "Late-Titled-Tuesday-Blitz-April-30-2024"]
[Site "Chess.com"]
[Date "2024.04.30"]
[Round "9"]
[White "BardArtem"]
[Black "anasta10"]
[Result "1/2-1/2"]
[WhiteElo "2783"]
[BlackElo "2613"]
[TimeControl "180+1"]
[EndTime "15:46:46 PDT"]
[Termination "Game drawn by stalemate"]

1. e4 {[%clk 0:03:00.9]} 1... g6 {[%clk 0:02:49.8]} 2. d4 {[%clk 0:03:00.5]}
2... Bg7 {[%clk 0:02:50.2]} 3. Nc3 {[%clk 0:03:00.2]} 3... d6 {[%clk 0:02:49.4]}
4. Nf3 {[%clk 0:03:00.5]} 4... a6 {[%clk 0:02:50]} 5. Bc4 {[%clk 0:03:00.5]}
5... b5 {[%clk 0:02:50.1]} 6. Bd5 {[%clk 0:03:00.9]} 6... c6 {[%clk 0:02:47.9]}
7. Bb3 {[%clk 0:03:01.2]} 7... b4 {[%clk 0:02:45.3]} 8. Ne2 {[%clk 0:03:01.1]}
8... a5 {[%clk 0:02:45.6]} 9. c3 {[%clk 0:03:01.1]} 9... Nf6 {[%clk 0:02:43.7]}
10. Ng3 {[%clk 0:03:00.8]} 10... O-O {[%clk 0:02:39.1]} 11. O-O {[%clk
0:03:00.2]} 11... c5 {[%clk 0:02:32.3]} 12. dxc5 {[%clk 0:02:54.7]} 12... dxc5
{[%clk 0:02:30.7]} 13. e5 {[%clk 0:02:34.5]} 13... Qxd1 {[%clk 0:02:29.8]} 14.
Rxd1 {[%clk 0:02:33.6]} 14... Ng4 {[%clk 0:02:30.5]} 15. Bf4 {[%clk 0:02:27.5]}
15... a4 {[%clk 0:02:18.9]} 16. Bd5 {[%clk 0:02:26.8]} 16... Ra6 {[%clk
0:02:06.7]} 17. cxb4 {[%clk 0:02:22.9]} 17... cxb4 {[%clk 0:02:05.4]} 18. Rac1
{[%clk 0:02:23.5]} 18... Be6 {[%clk 0:01:52.3]} 19. Bxe6 {[%clk 0:01:56.5]}
19... fxe6 {[%clk 0:01:50.9]} 20. Rc4 {[%clk 0:01:42.9]} 20... Nc6 {[%clk
0:01:43.8]} 21. Re4 {[%clk 0:01:40.8]} 21... h6 {[%clk 0:01:23]} 22. h3 {[%clk
0:01:36.8]} 22... g5 {[%clk 0:01:23.4]} 23. hxg4 {[%clk 0:01:37.1]} 23... Rxf4
{[%clk 0:01:18.9]} 24. Rde1 {[%clk 0:01:26.1]} 24... Rxe4 {[%clk 0:01:15.1]} 25.
Rxe4 {[%clk 0:01:27]} 25... Ra5 {[%clk 0:01:07.1]} 26. Rc4 {[%clk 0:01:18]}
26... Nxe5 {[%clk 0:00:50.4]} 27. Rxb4 {[%clk 0:01:09.4]} 27... a3 {[%clk
0:00:34.5]} 28. Nxe5 {[%clk 0:00:51.2]} 28... Bxe5 {[%clk 0:00:27.8]} 29. b3
{[%clk 0:00:51.3]} 29... Rd5 {[%clk 0:00:20.1]} 30. Ra4 {[%clk 0:00:15.2]} 30...
Bd6 {[%clk 0:00:16.7]} 31. b4 {[%clk 0:00:04]} 31... Rd3 {[%clk 0:00:12.8]} 32.
Nf1 {[%clk 0:00:03.1]} 32... Kf7 {[%clk 0:00:06.3]} 33. Ne3 {[%clk 0:00:03.4]}
33... Rc3 {[%clk 0:00:04.3]} 34. Kf1 {[%clk 0:00:02.2]} 34... Bf4 {[%clk
0:00:01.9]} 35. Ke2 {[%clk 0:00:02]} 35... Bxe3 {[%clk 0:00:02]} 36. fxe3 {[%clk
0:00:02.5]} 36... Rc2+ {[%clk 0:00:02.7]} 37. Kf3 {[%clk 0:00:03.2]} 37... Rxa2
{[%clk 0:00:03.6]} 38. b5 {[%clk 0:00:02.7]} 38... Rb2 {[%clk 0:00:04]} 39. Rxa3
{[%clk 0:00:03.3]} 39... Rxb5 {[%clk 0:00:04.6]} 40. Ra8 {[%clk 0:00:04.2]}
40... Kg6 {[%clk 0:00:04.4]} 41. Rg8+ {[%clk 0:00:04.6]} 41... Kf7 {[%clk
0:00:04.9]} 42. Ra8 {[%clk 0:00:05.5]} 42... Rd5 {[%clk 0:00:04.5]} 43. Rh8
{[%clk 0:00:05.8]} 43... Kg7 {[%clk 0:00:04.8]} 44. Re8 {[%clk 0:00:06.3]} 44...
Rd7 {[%clk 0:00:04.3]} 45. Ra8 {[%clk 0:00:06.6]} 45... Kf7 {[%clk 0:00:04.1]}
46. Ke4 {[%clk 0:00:07.2]} 46... Rd2 {[%clk 0:00:03.9]} 47. g3 {[%clk
0:00:07.1]} 47... Rg2 {[%clk 0:00:03.6]} 48. Kf3 {[%clk 0:00:07.7]} 48... Rc2
{[%clk 0:00:03.7]} 49. Rh8 {[%clk 0:00:08.5]} 49... Kg7 {[%clk 0:00:04.2]} 50.
Rb8 {[%clk 0:00:09.1]} 50... Ra2 {[%clk 0:00:03.7]} 51. Rb7 {[%clk 0:00:09.7]}
51... Kf6 {[%clk 0:00:04]} 52. Rb5 {[%clk 0:00:10.2]} 52... Ra3 {[%clk 0:00:04]}
53. Rb8 {[%clk 0:00:10.8]} 53... Kf7 {[%clk 0:00:03.9]} 54. Rh8 {[%clk
0:00:11.2]} 54... Kg7 {[%clk 0:00:04.4]} 55. Rc8 {[%clk 0:00:12.1]} 55... Kf7
{[%clk 0:00:04.7]} 56. Rc4 {[%clk 0:00:12.8]} 56... Kg7 {[%clk 0:00:04.8]} 57.
Re4 {[%clk 0:00:13.5]} 57... Kf6 {[%clk 0:00:05.3]} 58. Rd4 {[%clk 0:00:14.2]}
58... Ra1 {[%clk 0:00:05.6]} 59. Rb4 {[%clk 0:00:14.8]} 59... Rf1+ {[%clk
0:00:06]} 60. Ke2 {[%clk 0:00:15.5]} 60... Ra1 {[%clk 0:00:06.6]} 61. Rb8 {[%clk
0:00:15.3]} 61... Kg7 {[%clk 0:00:06.5]} 62. Kd3 {[%clk 0:00:15.8]} 62... Rg1
{[%clk 0:00:06.3]} 63. Rb7 {[%clk 0:00:10.8]} 63... Rxg3 {[%clk 0:00:06]} 64.
Rxe7+ {[%clk 0:00:10]} 64... Kf6 {[%clk 0:00:06.6]} 65. Rh7 {[%clk 0:00:10.3]}
65... Kg6 {[%clk 0:00:06.8]} 66. Re7 {[%clk 0:00:11]} 66... Kf6 {[%clk
0:00:07.1]} 67. Rh7 {[%clk 0:00:11.4]} 67... Rxg4 {[%clk 0:00:07.2]} 68. Rxh6+
{[%clk 0:00:11.8]} 68... Ke5 {[%clk 0:00:07.8]} 69. Rg6 {[%clk 0:00:11.5]} 69...
Rg1 {[%clk 0:00:07.9]} 70. Rg8 {[%clk 0:00:10.6]} 70... Rg2 {[%clk 0:00:07.9]}
71. Rg7 {[%clk 0:00:09.6]} 71... Kf5 {[%clk 0:00:06.5]} 72. Rf7+ {[%clk
0:00:08.2]} 72... Ke5 {[%clk 0:00:06.8]} 73. Rg7 {[%clk 0:00:08]} 73... Kf6
{[%clk 0:00:07.4]} 74. Rg8 {[%clk 0:00:08.1]} 74... Kf5 {[%clk 0:00:07.8]} 75.
Rf8+ {[%clk 0:00:07.9]} 75... Ke5 {[%clk 0:00:08.1]} 76. Rg8 {[%clk 0:00:07.6]}
76... g4 {[%clk 0:00:08.8]} 77. Rg5+ {[%clk 0:00:05.6]} 77... Kf6 {[%clk
0:00:09]} 78. Rg8 {[%clk 0:00:06.3]} 78... Kf5 {[%clk 0:00:06.9]} 79. Rf8+
{[%clk 0:00:05.4]} 79... Ke5 {[%clk 0:00:07.2]} 80. Rg8 {[%clk 0:00:05.7]} 80...
g3 {[%clk 0:00:07.7]} 81. Rg7 {[%clk 0:00:05.7]} 81... Kf5 {[%clk 0:00:07.1]}
82. Rg8 {[%clk 0:00:05.3]} 82... e5 {[%clk 0:00:06.9]} 83. Rf8+ {[%clk
0:00:03.5]} 83... Ke6 {[%clk 0:00:05.1]} 84. Ke4 {[%clk 0:00:03.5]} 84... Rf2
{[%clk 0:00:05.2]} 85. Rg8 {[%clk 0:00:03.3]} 85... g2 {[%clk 0:00:05.7]} 86.
Rg6+ {[%clk 0:00:03.6]} 86... Kf7 {[%clk 0:00:05.4]} 87. Rg3 {[%clk 0:00:04.3]}
87... Kf6 {[%clk 0:00:04.8]} 88. Rg4 {[%clk 0:00:04.8]} 88... Ra2 {[%clk
0:00:05]} 89. Kf3 {[%clk 0:00:04.1]} 89... Kf5 {[%clk 0:00:05]} 90. e4+ {[%clk
0:00:03.1]} 90... Ke6 {[%clk 0:00:03.7]} 91. Rxg2 {[%clk 0:00:03.3]} 91... Ra3+
{[%clk 0:00:02.6]} 92. Kg4 {[%clk 0:00:03.5]} 92... Re3 {[%clk 0:00:02.6]} 93.
Ra2 {[%clk 0:00:02.4]} 93... Rxe4+ {[%clk 0:00:02.9]} 94. Kf3 {[%clk 0:00:03]}
94... Rd4 {[%clk 0:00:03.5]} 95. Ke3 {[%clk 0:00:03.5]} 95... Rg4 {[%clk
0:00:02.5]} 96. Rh2 {[%clk 0:00:03.1]} 96... Kd5 {[%clk 0:00:02.4]} 97. Rd2+
{[%clk 0:00:03.5]} 97... Rd4 {[%clk 0:00:02.9]} 98. Rxd4+ {[%clk 0:00:03.9]}
98... exd4+ {[%clk 0:00:03.8]} 99. Kd3 {[%clk 0:00:04.8]} 99... Ke5 {[%clk
0:00:04.7]} 100. Kd2 {[%clk 0:00:05.2]} 100... Ke4 {[%clk 0:00:05.6]} 101. Ke2
{[%clk 0:00:05.8]} 101... d3+ {[%clk 0:00:06.3]} 102. Kd2 {[%clk 0:00:06.4]}
102... Kd4 {[%clk 0:00:07.2]} 103. Kd1 {[%clk 0:00:07]} 103... Kc3 {[%clk
0:00:08.1]} 104. Kc1 {[%clk 0:00:07.5]} 104... d2+ {[%clk 0:00:09]} 105. Kd1
{[%clk 0:00:08]} 105... Kd3 {[%clk 0:00:09.9]} 1/2-1/2

[Event "Late-Titled-Tuesday-Blitz-April-30-2024"]
[Site "Chess.com"]
[Date "2024.04.30"]
[Round "10"]
[White "Kostukov_Alex"]
[Black "TheMagician"]
[Result "1-0"]
[WhiteElo "2377"]
[BlackElo "2141"]
[TimeControl "180+1"]
[EndTime "15:49:27 PDT"]
[Termination "Kostukov_Alex won by resignation"]

1. g3 {[%clk 0:03:00.9]} 1... d5 {[%clk 0:02:59.7]} 2. Bg2 {[%clk 0:03:00.6]}
2... c6 {[%clk 0:02:59.9]} 3. d3 {[%clk 0:03:00.8]} 3... Bf5 {[%clk 0:02:56.4]}
4. e4 {[%clk 0:03:00.2]} 4... dxe4 {[%clk 0:02:56.1]} 5. dxe4 {[%clk 0:03:00.9]}
5... Qxd1+ {[%clk 0:02:55.4]} 6. Kxd1 {[%clk 0:03:01.8]} 6... Bg4+ {[%clk
0:02:54.7]} 7. f3 {[%clk 0:03:01.4]} 7... Bc8 {[%clk 0:02:54.7]} 8. Be3 {[%clk
0:03:02.3]} 8... e5 {[%clk 0:02:54.9]} 9. Nd2 {[%clk 0:03:03.2]} 9... Be6 {[%clk
0:02:54.8]} 10. Bh3 {[%clk 0:03:02.1]} 10... Bxh3 {[%clk 0:02:53.3]} 11. Nxh3
{[%clk 0:03:03]} 11... Nd7 {[%clk 0:02:53.1]} 12. Ke2 {[%clk 0:03:03.9]} 12...
Bc5 {[%clk 0:02:52.6]} 13. Nc4 {[%clk 0:02:56.6]} 13... Bxe3 {[%clk 0:02:49.6]}
14. Kxe3 {[%clk 0:02:57.5]} 14... Ke7 {[%clk 0:02:49.8]} 15. Rhd1 {[%clk
0:02:53.5]} 15... f6 {[%clk 0:02:45.7]} 16. Nd6 {[%clk 0:02:49.4]} 16... Rb8
{[%clk 0:02:24.7]} 17. Nf5+ {[%clk 0:02:44.5]} 17... Ke8 {[%clk 0:02:18.4]} 18.
Nxg7+ {[%clk 0:02:43.7]} 18... Ke7 {[%clk 0:02:18.7]} 19. Nf5+ {[%clk
0:02:33.9]} 19... Ke8 {[%clk 0:02:18.4]} 20. Rd6 {[%clk 0:02:31.8]} 20... Ne7
{[%clk 0:02:15.5]} 21. Ng7+ {[%clk 0:02:23.9]} 1-0

[Event "Late-Titled-Tuesday-Blitz-April-30-2024"]
[Site "Chess.com"]
[Date "2024.04.30"]
[Round "10"]
[White "ameetghasi100"]
[Black "yaguigor"]
[Result "1-0"]
[WhiteElo "2793"]
[BlackElo "2554"]
[TimeControl "180+1"]
[EndTime "15:49:55 PDT"]
[Termination "ameetghasi100 won by resignation"]

1. b3 {[%clk 0:03:00.9]} 1... d5 {[%clk 0:02:58.4]} 2. Bb2 {[%clk 0:03:01.8]}
2... Bg4 {[%clk 0:02:58.4]} 3. Nf3 {[%clk 0:03:02.7]} 3... Nd7 {[%clk
0:02:57.5]} 4. g3 {[%clk 0:03:02.6]} 4... c6 {[%clk 0:02:56.9]} 5. Bg2 {[%clk
0:03:03.1]} 5... Ngf6 {[%clk 0:02:55.4]} 6. O-O {[%clk 0:03:03.7]} 6... e6
{[%clk 0:02:55.3]} 7. d3 {[%clk 0:03:03.1]} 7... Bd6 {[%clk 0:02:52.2]} 8. Nbd2
{[%clk 0:03:03.6]} 8... Qe7 {[%clk 0:02:51.1]} 9. a3 {[%clk 0:03:03.5]} 9... e5
{[%clk 0:02:46]} 10. e4 {[%clk 0:03:03.4]} 10... dxe4 {[%clk 0:02:42.6]} 11.
dxe4 {[%clk 0:03:04.3]} 11... O-O {[%clk 0:02:42.1]} 12. h3 {[%clk 0:03:04.3]}
12... Bxf3 {[%clk 0:02:40.2]} 13. Qxf3 {[%clk 0:03:05.1]} 13... b5 {[%clk
0:02:36]} 14. Qe2 {[%clk 0:03:05.3]} 14... a6 {[%clk 0:02:33.2]} 15. Nf3 {[%clk
0:03:05.3]} 15... Rfe8 {[%clk 0:02:28.9]} 16. Rfd1 {[%clk 0:03:03]} 16... Bc7
{[%clk 0:02:22]} 17. Nh4 {[%clk 0:03:01.5]} 17... g6 {[%clk 0:02:20.9]} 18. Bc1
{[%clk 0:03:01.4]} 18... Nh5 {[%clk 0:02:17.2]} 19. Nf5 {[%clk 0:02:59.3]} 19...
Qe6 {[%clk 0:02:09.1]} 20. h4 {[%clk 0:02:58]} 20... Ng7 {[%clk 0:02:02.3]} 21.
Nh6+ {[%clk 0:02:52.4]} 21... Kh8 {[%clk 0:02:02]} 22. Bh3 {[%clk 0:02:45.6]}
22... Qxh3 {[%clk 0:01:58.7]} 23. Nxf7+ {[%clk 0:02:45.5]} 23... Kg8 {[%clk
0:01:59.4]} 24. Ng5 {[%clk 0:02:46]} 1-0

[Event "Late-Titled-Tuesday-Blitz-April-30-2024"]
[Site "Chess.com"]
[Date "2024.04.30"]
[Round "10"]
[White "HandKnit"]
[Black "mjelcic"]
[Result "1-0"]
[WhiteElo "2495"]
[BlackElo "2326"]
[TimeControl "180+1"]
[EndTime "15:50:07 PDT"]
[Termination "HandKnit won by resignation"]

1. c4 {[%clk 0:03:00.9]} 1... g6 {[%clk 0:02:57.8]} 2. Nf3 {[%clk 0:03:00.2]}
2... Bg7 {[%clk 0:02:57.4]} 3. g3 {[%clk 0:03:00.8]} 3... c5 {[%clk 0:02:55.2]}
4. Bg2 {[%clk 0:03:00.3]} 4... Nc6 {[%clk 0:02:55.2]} 5. O-O {[%clk 0:03:00.5]}
5... Nf6 {[%clk 0:02:50.8]} 6. Nc3 {[%clk 0:02:59.7]} 6... O-O {[%clk
0:02:50.4]} 7. d4 {[%clk 0:02:59.5]} 7... d5 {[%clk 0:02:46.8]} 8. cxd5 {[%clk
0:02:48.3]} 8... Nxd5 {[%clk 0:02:45.8]} 9. Nxd5 {[%clk 0:02:48]} 9... Qxd5
{[%clk 0:02:45.6]} 10. Be3 {[%clk 0:02:47.7]} 10... cxd4 {[%clk 0:02:44.7]} 11.
Nxd4 {[%clk 0:02:47.1]} 11... Qe5 {[%clk 0:02:24]} 12. Nxc6 {[%clk 0:02:43.6]}
12... bxc6 {[%clk 0:02:24.9]} 13. Bxc6 {[%clk 0:02:43.4]} 13... Rb8 {[%clk
0:02:24.8]} 14. Bf4 {[%clk 0:02:41.4]} 14... Qxb2 {[%clk 0:02:24.2]} 15. Bxb8
{[%clk 0:02:38.7]} 15... Qxa1 {[%clk 0:02:15.8]} 16. Qxa1 {[%clk 0:02:34.1]}
16... Bxa1 {[%clk 0:02:14.8]} 17. Rxa1 {[%clk 0:02:35]} 17... Ba6 {[%clk
0:02:13.2]} 18. Bxa7 {[%clk 0:02:31.8]} 18... Bxe2 {[%clk 0:02:11.3]} 19. Be3
{[%clk 0:02:28.9]} 19... f5 {[%clk 0:02:08.8]} 20. a4 {[%clk 0:02:26.2]} 20...
e5 {[%clk 0:02:08.7]} 21. f4 {[%clk 0:02:25.3]} 21... Rc8 {[%clk 0:02:05.3]} 22.
Bb5 {[%clk 0:02:17.1]} 22... Bxb5 {[%clk 0:02:01.6]} 23. axb5 {[%clk 0:02:18]}
23... Rb8 {[%clk 0:02:00.8]} 24. b6 {[%clk 0:02:15.8]} 24... exf4 {[%clk
0:02:01.7]} 25. gxf4 {[%clk 0:02:15.8]} 25... h6 {[%clk 0:01:59.8]} 26. Ra7
{[%clk 0:02:15.9]} 26... g5 {[%clk 0:01:57.4]} 27. Kf2 {[%clk 0:02:16]} 27...
gxf4 {[%clk 0:01:56.4]} 28. Bd4 {[%clk 0:02:15.5]} 1-0

[Event "Late-Titled-Tuesday-Blitz-April-30-2024"]
[Site "Chess.com"]
[Date "2024.04.30"]
[Round "10"]
[White "db-banana"]
[Black "KebabJangles"]
[Result "1-0"]
[WhiteElo "2471"]
[BlackElo "2330"]
[TimeControl "180+1"]
[EndTime "15:50:23 PDT"]
[Termination "db-banana won by resignation"]

1. e4 {[%clk 0:03:00.9]} 1... c5 {[%clk 0:03:00]} 2. Nf3 {[%clk 0:03:00.8]} 2...
e6 {[%clk 0:03:00.1]} 3. g3 {[%clk 0:03:01.4]} 3... d5 {[%clk 0:02:59.6]} 4.
exd5 {[%clk 0:03:01.7]} 4... exd5 {[%clk 0:02:59.9]} 5. Bg2 {[%clk 0:03:02.3]}
5... Nf6 {[%clk 0:03:00.4]} 6. O-O {[%clk 0:03:02.9]} 6... Be7 {[%clk
0:03:00.6]} 7. d4 {[%clk 0:03:03.2]} 7... O-O {[%clk 0:03:01.2]} 8. dxc5 {[%clk
0:03:03.4]} 8... Bxc5 {[%clk 0:03:01.2]} 9. Nbd2 {[%clk 0:03:04]} 9... Nc6
{[%clk 0:03:01.1]} 10. Nb3 {[%clk 0:03:04.6]} 10... Bb6 {[%clk 0:03:00.6]} 11.
Bg5 {[%clk 0:03:05.2]} 11... Be6 {[%clk 0:02:59.5]} 12. c3 {[%clk 0:03:05.6]}
12... h6 {[%clk 0:02:59.4]} 13. Bf4 {[%clk 0:03:03.6]} 13... Qd7 {[%clk
0:02:55]} 14. Nbd4 {[%clk 0:03:03.3]} 14... Ne4 {[%clk 0:02:53.1]} 15. Re1
{[%clk 0:03:02.4]} 15... Rad8 {[%clk 0:02:50.9]} 16. Ne5 {[%clk 0:03:02.6]}
16... Nxe5 {[%clk 0:02:50.7]} 17. Bxe5 {[%clk 0:03:03.5]} 17... f5 {[%clk
0:02:47.3]} 18. Bxe4 {[%clk 0:02:40]} 18... fxe4 {[%clk 0:02:48.2]} 19. Qd2
{[%clk 0:02:26.7]} 19... Bxd4 {[%clk 0:02:46.6]} 20. Qxd4 {[%clk 0:02:24]} 20...
Bg4 {[%clk 0:02:46.2]} 21. f4 {[%clk 0:02:06.7]} 21... exf3 {[%clk 0:02:47.1]}
22. Kf2 {[%clk 0:02:04.5]} 22... Qf7 {[%clk 0:02:21.4]} 23. Qxg4 {[%clk
0:02:02.3]} 23... h5 {[%clk 0:02:14.8]} 24. Qg5 {[%clk 0:01:55.9]} 24... g6
{[%clk 0:02:14.1]} 25. Qh6 {[%clk 0:01:53.5]} 25... Qh7 {[%clk 0:02:11]} 26.
Qxh7+ {[%clk 0:01:53.2]} 26... Kxh7 {[%clk 0:02:11.9]} 27. Re3 {[%clk
0:01:52.2]} 27... Rde8 {[%clk 0:02:10.7]} 28. Rae1 {[%clk 0:01:49.7]} 28... Rf5
{[%clk 0:02:10.4]} 29. Bd4 {[%clk 0:01:45.5]} 29... Ref8 {[%clk 0:02:09.7]} 30.
Re7+ {[%clk 0:01:45.8]} 30... R8f7 {[%clk 0:02:10.1]} 31. Rxf7+ {[%clk
0:01:46.2]} 31... Rxf7 {[%clk 0:02:11]} 32. Re3 {[%clk 0:01:46.5]} 1-0

[Event "Late-Titled-Tuesday-Blitz-April-30-2024"]
[Site "Chess.com"]
[Date "2024.04.30"]
[Round "10"]
[White "Bryanl106"]
[Black "SVijayalakshmi"]
[Result "1-0"]
[WhiteElo "2692"]
[BlackElo "2575"]
[TimeControl "180+1"]
[EndTime "15:51:13 PDT"]
[Termination "Bryanl106 won by resignation"]

1. e4 {[%clk 0:03:00.9]} 1... e5 {[%clk 0:03:00]} 2. Nf3 {[%clk 0:03:00.9]} 2...
Nc6 {[%clk 0:03:00.3]} 3. Nc3 {[%clk 0:03:01.5]} 3... Nf6 {[%clk 0:03:00.2]} 4.
a3 {[%clk 0:03:02.1]} 4... Bc5 {[%clk 0:02:52.7]} 5. Nxe5 {[%clk 0:03:00.8]}
5... Bxf2+ {[%clk 0:02:51]} 6. Kxf2 {[%clk 0:03:01.3]} 6... Nxe5 {[%clk
0:02:51.3]} 7. d4 {[%clk 0:03:01.8]} 7... Nfg4+ {[%clk 0:02:48.5]} 8. Kg1 {[%clk
0:03:00]} 8... Qf6 {[%clk 0:02:41.7]} 9. Qd2 {[%clk 0:02:42.6]} 9... Nc6 {[%clk
0:02:29.9]} 10. Nd5 {[%clk 0:02:39.6]} 10... Qd6 {[%clk 0:02:24.7]} 11. Qg5
{[%clk 0:02:35.3]} 11... Qg6 {[%clk 0:02:08.6]} 12. Qxg6 {[%clk 0:02:34.7]}
12... hxg6 {[%clk 0:02:07.4]} 13. Nxc7+ {[%clk 0:02:35.1]} 13... Kd8 {[%clk
0:02:07.8]} 14. Nxa8 {[%clk 0:02:36]} 14... Nxd4 {[%clk 0:02:07.9]} 15. Bf4
{[%clk 0:02:36.2]} 15... Ne6 {[%clk 0:02:02]} 16. Bg3 {[%clk 0:02:34.8]} 16...
Ne3 {[%clk 0:01:56.1]} 17. Re1 {[%clk 0:02:27.2]} 17... Nxc2 {[%clk 0:01:54.7]}
18. Rc1 {[%clk 0:02:27.4]} 18... Ncd4 {[%clk 0:01:40.7]} 19. Nc7 {[%clk
0:02:26.4]} 19... b6 {[%clk 0:01:41]} 20. Nxe6+ {[%clk 0:02:23.6]} 20... Nxe6
{[%clk 0:01:41.2]} 21. Bd6 {[%clk 0:02:22.3]} 21... Bb7 {[%clk 0:01:41.2]} 22.
Bb5 {[%clk 0:02:17.2]} 22... Bxe4 {[%clk 0:01:38.6]} 23. Ba6 {[%clk 0:02:17.2]}
23... Bc6 {[%clk 0:01:35.6]} 24. b4 {[%clk 0:02:17]} 24... b5 {[%clk 0:01:25.6]}
25. a4 {[%clk 0:02:15.4]} 25... Nd4 {[%clk 0:01:25.2]} 26. axb5 {[%clk
0:02:12.6]} 26... Nxb5 {[%clk 0:01:19.1]} 27. Bxb5 {[%clk 0:02:12.6]} 27... Bxb5
{[%clk 0:01:19.2]} 28. Kf2 {[%clk 0:02:13.2]} 28... Rh5 {[%clk 0:01:14.4]} 29.
Rhe1 {[%clk 0:02:13.3]} 29... Bc6 {[%clk 0:01:11.5]} 30. Rc5 {[%clk 0:02:09.7]}
30... Rh4 {[%clk 0:01:09.4]} 31. b5 {[%clk 0:02:08.8]} 31... Rd4 {[%clk
0:01:05.9]} 32. bxc6 {[%clk 0:02:08.1]} 32... Rxd6 {[%clk 0:01:06.1]} 33. c7+
{[%clk 0:02:08.8]} 1-0

[Event "Late-Titled-Tuesday-Blitz-April-30-2024"]
[Site "Chess.com"]
[Date "2024.04.30"]
[Round "10"]
[White "cristiano78"]
[Black "Romadk"]
[Result "0-1"]
[WhiteElo "2275"]
[BlackElo "2484"]
[TimeControl "180+1"]
[EndTime "15:51:13 PDT"]
[Termination "Romadk won by checkmate"]

1. d4 {[%clk 0:02:57.4]} 1... Nf6 {[%clk 0:02:59.8]} 2. c4 {[%clk 0:02:56.3]}
2... e6 {[%clk 0:03:00]} 3. Nf3 {[%clk 0:02:57]} 3... d5 {[%clk 0:03:00]} 4. Nc3
{[%clk 0:02:57]} 4... Bb4 {[%clk 0:02:59.4]} 5. Bg5 {[%clk 0:02:56.8]} 5... h6
{[%clk 0:02:58.9]} 6. Bxf6 {[%clk 0:02:56.5]} 6... Qxf6 {[%clk 0:02:59.8]} 7.
Rc1 {[%clk 0:02:56.9]} 7... O-O {[%clk 0:02:55.1]} 8. Ne5 {[%clk 0:02:56.4]}
8... Nd7 {[%clk 0:02:51.2]} 9. Nxd7 {[%clk 0:02:55.9]} 9... Bxd7 {[%clk
0:02:52.1]} 10. e3 {[%clk 0:02:55.5]} 10... c5 {[%clk 0:02:47.7]} 11. dxc5
{[%clk 0:02:52.7]} 11... Bc6 {[%clk 0:02:32.8]} 12. cxd5 {[%clk 0:02:47.7]}
12... exd5 {[%clk 0:02:30.8]} 13. a3 {[%clk 0:02:44.4]} 13... Bxc5 {[%clk
0:02:28.6]} 14. Nxd5 {[%clk 0:02:33]} 14... Bxd5 {[%clk 0:02:14.9]} 15. Qxd5
{[%clk 0:02:32]} 15... b6 {[%clk 0:02:01]} 16. b4 {[%clk 0:02:25]} 16... Rfd8
{[%clk 0:01:51.3]} 17. Qc4 {[%clk 0:02:19]} 17... Qd6 {[%clk 0:01:37.3]} 18. Qc3
{[%clk 0:02:13.6]} 18... Rac8 {[%clk 0:01:10.7]} 19. bxc5 {[%clk 0:02:01]} 19...
Rxc5 {[%clk 0:01:10.8]} 20. Qb2 {[%clk 0:01:59.8]} 20... Qd5 {[%clk 0:00:49.6]}
21. Rxc5 {[%clk 0:01:55.5]} 21... Qd1# {[%clk 0:00:49.3]} 0-1

[Event "Late-Titled-Tuesday-Blitz-April-30-2024"]
[Site "Chess.com"]
[Date "2024.04.30"]
[Round "10"]
[White "MITerryble"]
[Black "jefferyx"]
[Result "1/2-1/2"]
[WhiteElo "3044"]
[BlackElo "3113"]
[TimeControl "180+1"]
[EndTime "15:51:47 PDT"]
[Termination "Game drawn by repetition"]

1. d4 {[%clk 0:02:58.2]} 1... f5 {[%clk 0:03:00.5]} 2. Bg5 {[%clk 0:02:55.7]}
2... g6 {[%clk 0:02:58.2]} 3. Nc3 {[%clk 0:02:51.7]} 3... d5 {[%clk 0:02:57.9]}
4. e3 {[%clk 0:02:47]} 4... Bg7 {[%clk 0:02:58]} 5. Nf3 {[%clk 0:02:43]} 5... c6
{[%clk 0:02:58.3]} 6. Bf4 {[%clk 0:02:42.9]} 6... Nd7 {[%clk 0:02:57.5]} 7. h4
{[%clk 0:02:39.8]} 7... Ngf6 {[%clk 0:02:57.4]} 8. Ne5 {[%clk 0:02:40.3]} 8...
O-O {[%clk 0:02:39.3]} 9. Be2 {[%clk 0:02:39.4]} 9... Nxe5 {[%clk 0:02:31.8]}
10. Bxe5 {[%clk 0:02:39]} 10... h6 {[%clk 0:02:32.4]} 11. f4 {[%clk 0:02:24]}
11... h5 {[%clk 0:02:29]} 12. Bf3 {[%clk 0:02:22]} 12... b6 {[%clk 0:02:26.2]}
13. O-O {[%clk 0:02:20.9]} 13... Ba6 {[%clk 0:02:22.3]} 14. Rf2 {[%clk
0:02:11.7]} 14... e6 {[%clk 0:02:21]} 15. g3 {[%clk 0:02:11.1]} 15... c5 {[%clk
0:02:14.8]} 16. a4 {[%clk 0:02:04.4]} 16... Rc8 {[%clk 0:02:14.6]} 17. Nb5
{[%clk 0:01:57.9]} 17... Qd7 {[%clk 0:02:12.3]} 18. Qd3 {[%clk 0:01:46.9]} 18...
Rf7 {[%clk 0:02:07.5]} 19. Qb3 {[%clk 0:01:44.1]} 19... c4 {[%clk 0:02:04.5]}
20. Qb4 {[%clk 0:01:31]} 20... Bf8 {[%clk 0:02:04.3]} 21. Bd6 {[%clk 0:01:25.2]}
21... Bg7 {[%clk 0:02:04.3]} 22. Be5 {[%clk 0:01:06.9]} 22... Bf8 {[%clk
0:02:04.2]} 23. Bd6 {[%clk 0:01:06.3]} 23... Bxb5 {[%clk 0:02:00.3]} 24. Bxf8
{[%clk 0:01:06.1]} 24... a5 {[%clk 0:02:01]} 25. Qxb5 {[%clk 0:00:55.6]} 25...
Qxb5 {[%clk 0:02:01.3]} 26. axb5 {[%clk 0:00:56.5]} 26... Kxf8 {[%clk
0:02:01.8]} 27. c3 {[%clk 0:00:56]} 27... Ne8 {[%clk 0:02:01.3]} 28. Bd1 {[%clk
0:00:56]} 28... Nd6 {[%clk 0:01:39.2]} 29. Ba4 {[%clk 0:00:55.8]} 29... Ne4
{[%clk 0:01:39.6]} 30. Rg2 {[%clk 0:00:55]} 30... Nd6 {[%clk 0:01:40]} 31. Rf2
{[%clk 0:00:54.5]} 31... Ne4 {[%clk 0:01:37.5]} 32. Rg2 {[%clk 0:00:54.9]} 32...
Nd6 {[%clk 0:01:37.7]} 33. Rf2 {[%clk 0:00:55.4]} 1/2-1/2